fUSD/lending_fUSD_20260203
["ID","MTS","AMOUNT","RATE_DAILY","PERIOD"]
[404439276,1770142137218,-150.99,6.9e-05,2]
[404439277,1770142137246,-999.99,6.9e-05,2]
[404439278,1770142137300,-2698.05,6.9e-05,2]
[404439279,1770142137339,-5000.01,6.9e-05,2]
[404439280,1770142139858,-2301.93,6.9e-05,2]
[404439281,1770142139888,-96.16,6.9e-05,2]
[404439282,1770142139923,-203.83,6.9e-05,2]
[404439283,1770142140017,-5000.01,6.9e-05,2]
[404439284,1770142140128,-0.03,6.9e-05,2]
[404439285,1770142140151,-4999.95,6.9e-05,2]
[404439286,1770142143055,-5000.01,6.9e-05,2]
[404439287,1770142143249,-1799.99,6.9e-05,2]
[404439288,1770142143292,-1400.03,7e-05,2]
[404439289,1770142143380,-5000.01,7e-05,2]
[404439290,1770142145926,-2300.05,7e-05,2]
[404439291,1770142145951,-399.91,7e-05,2]
[404439292,1770142146095,-258.51,7.19e-05,2]
[404439293,1770142146123,-1680.0,7.214e-05,2]
[404439294,1770142146150,-420.0,7.214e-05,2]
[404439295,1770142146177,-89.99,7.215e-05,2]
[404439296,1770142146247,-103.01,7.215e-05,2]
[404439297,1770142146304,-250.0,7.215e-05,2]
[404439298,1770142146333,-216.69,7.238e-05,2]
[404439299,1770142146358,-1852.42,7.281e-05,2]
[404439300,1770142146440,-1651.62,7.381e-05,2]
[404439301,1770142146465,-150.0,7.397e-05,2]
[404439302,1770142146554,-211.79,7.398e-05,2]
[404439303,1770142146575,-150.0,7.398e-05,2]
[404439304,1770142146593,-1396.77,7.398e-05,2]
[404439306,1770142149000,-250.0,7.095e-05,2]
[404439307,1770142149047,-310.59740914,7.171e-05,2]
[404439308,1770142149121,-3878.81518172,7.398e-05,2]
[404439309,1770142149154,-5000.01,7.398e-05,2]
[404439310,1770142149242,-5000.01,7.398e-05,2]
[404439313,1770142152185,-300.0,7.397e-05,2]
[404439314,1770142152232,-4400.01,7.398e-05,2]
[404439315,1770142152398,-5000.01,7.398e-05,2]
[404439316,1770142152519,-5000.01,7.398e-05,2]
[404439317,1770142155074,-1000.0,7.397e-05,2]
[404439318,1770142155120,-3000.01,7.398e-05,2]
[404439319,1770142155177,-5000.01,7.398e-05,2]
[404439320,1770142155294,-5000.01,7.398e-05,2]
[404439321,1770142155387,-5000.01,7.398e-05,2]
[404439322,1770142158080,-5000.01,7.398e-05,2]
[404439323,1770142158229,-5000.01,7.398e-05,2]
[404439324,1770142158471,235.78,6.335e-05,2]
[404439326,1770142161206,-235.78,6.968e-05,2]
[404439327,1770142161244,-4528.45,7.398e-05,2]
[404439328,1770142161396,-5000.01,7.398e-05,2]
[404439329,1770142161535,-5000.01,7.398e-05,2]
[404439330,1770142161675,-5000.01,7.398e-05,2]
[404439331,1770142161811,-5000.01,7.398e-05,2]
[404439333,1770142164071,-5000.01,7.398e-05,2]
[404439334,1770142164177,-5000.01,7.398e-05,2]
[404439335,1770142167100,-5000.01,7.398e-05,2]
[404439336,1770142167215,-5000.01,7.398e-05,2]
[404439337,1770142167315,-5000.01,7.398e-05,2]
[404439338,1770142167453,-5000.01,7.398e-05,2]
[404439339,1770142167553,-5000.01,7.398e-05,2]
[404439343,1770142173176,-5000.01,7.398e-05,2]
[404439344,1770142173275,-5000.01,7.398e-05,2]
[404439345,1770142173396,-5000.01,7.398e-05,2]
[404439346,1770142173540,-5000.01,7.398e-05,2]
[404439347,1770142179194,-5000.01,7.398e-05,2]
[404439348,1770142182513,-5000.01,7.398e-05,2]
[404439349,1770142182584,-5000.01,7.398e-05,2]
[404439350,1770142182695,-5000.01,7.398e-05,2]
[404439351,1770142185791,-5000.01,7.398e-05,2]
[404439352,1770142185815,-5000.01,7.398e-05,2]
[404439353,1770142185830,-5000.01,7.398e-05,2]
[404439354,1770142185854,-5000.01,7.398e-05,2]
[404439355,1770142185984,-5000.01,7.398e-05,2]
[404439356,1770142186098,-5000.01,7.398e-05,2]
[404439357,1770142188303,-5000.01,7.398e-05,2]
[404439358,1770142188416,-5000.01,7.398e-05,2]
[404439359,1770142188548,-5000.01,7.398e-05,2]
[404439360,1770142188622,-7728.8709401,7.398e-05,2]
[404439361,1770142188664,-5000.01,7.398e-05,2]
[404439362,1770142190916,-10000.01,7.398e-05,2]
[404439363,1770142191376,-10000.01,7.398e-05,2]
[404439364,1770142191418,-5000.01,7.398e-05,2]
[404439365,1770142191642,-5000.01,7.398e-05,2]
[404439366,1770142191693,-10000.01,7.398e-05,2]
[404439367,1770142191768,-5000.01,7.398e-05,2]
[404439368,1770142191885,-5000.01,7.398e-05,2]
[404439369,1770142191991,-5000.01,7.398e-05,2]
[404439370,1770142192016,-10000.01,7.398e-05,2]
[404439371,1770142192100,-5000.01,7.398e-05,2]
[404439372,1770142192669,-10000.01,7.398e-05,2]
[404439373,1770142192685,-10000.01,7.398e-05,2]
[404439374,1770142196754,-5000.01,7.398e-05,2]
[404439375,1770142196884,-5000.01,7.398e-05,2]
[404439376,1770142197011,-5000.01,7.398e-05,2]
[404439377,1770142197101,-5000.01,7.398e-05,2]
[404439379,1770142200617,-5000.01,7.398e-05,2]
[404439380,1770142200821,-5000.01,7.398e-05,2]
[404439381,1770142200948,-5000.01,7.398e-05,2]
[404439382,1770142201087,-5000.01,7.398e-05,2]
[404439383,1770142201193,-5000.01,7.398e-05,2]
[404439384,1770142201350,-5000.01,7.398e-05,2]
[404439385,1770142202290,-300.0,7.397e-05,2]
[404439386,1770142202321,-300.0,7.397e-05,2]
[404439387,1770142202351,-1200.0,7.397e-05,2]
[404439388,1770142202431,-6400.01,7.398e-05,2]
[404439389,1770142202512,-10000.01,7.398e-05,2]
[404439391,1770142202644,-10000.01,7.398e-05,2]
[404439392,1770142202793,-10000.01,7.398e-05,2]
[404439393,1770142202918,-2110.20897462,7.398e-05,2]
[404439394,1770142202941,-5779.59205076,7.398e-05,2]
[404439401,1770142215539,-213.0,7.398e-05,2]
[404439403,1770142230656,-250.0,7.399e-05,2]
[404439422,1770142232146,-559.44110274,7.4e-05,2]
[404439424,1770142232304,-299.06715887,7.4e-05,2]
[404439425,1770142232315,-3747.7,7.4e-05,2]
[404439426,1770142232327,-5256.9,7.4e-05,2]
[404439427,1770142232338,-1032.00616953,7.4e-05,2]
[404439428,1770142232362,-2095.62752873,7.4e-05,2]
[404439430,1770142232420,-2165.95804013,7.4e-05,2]
[404439432,1770142232433,-384.03825579,7.498e-05,2]
[404439434,1770142232442,-963.0,7.536e-05,2]
[404439436,1770142232452,-235.78,7.602e-05,2]
[404439438,1770142232462,-250.0,7.7e-05,2]
[404439440,1770142232471,-2434.87453742,7.71e-05,2]
[404439442,1770142232480,-1876.03,7.84e-05,2]
[404439445,1770142232490,-12882.18,7.853e-05,2]
[404439447,1770142232500,-61542.7166244,7.872e-05,2]
[404439449,1770142232512,-36892.22119006,7.872e-05,2]
[404439451,1770142232524,-1254.41808677,7.872e-05,2]
[404439463,1770142238183,-5738.6004,7.872e-05,2]
[404439464,1770142238195,-13380.60546218,7.872e-05,2]
[404439465,1770142238206,-19887.58823783,7.872e-05,2]
[404439466,1770142238237,-6255.38999876,7.872e-05,2]
[404439467,1770142238246,-12230.872634,7.945e-05,2]
[404439468,1770142238255,-420.0,8.036e-05,2]
[404439469,1770142238265,-356093.73736734,8.137e-05,2]
[404439470,1770142238276,-43491.41977986,8.137e-05,2]
[404439471,1770142238286,-255.0,8.137e-05,2]
[404439472,1770142238295,-420.0,8.137e-05,2]
[404439473,1770142238304,-420.0,8.137e-05,2]
[404439474,1770142238313,-420.0,8.137e-05,2]
[404439475,1770142238323,-1680.0,8.137e-05,2]
[404439476,1770142238332,-250.0,8.138e-05,2]
[404439477,1770142238341,-12618.140757,8.178e-05,2]
[404439478,1770142238350,-975.76962748,8.217e-05,2]
[404439479,1770142238360,-500.0,8.219e-05,2]
[404439480,1770142238370,-500.0,8.219e-05,2]
[404439481,1770142238380,-500.0,8.219e-05,2]
[404439482,1770142238389,-500.0,8.219e-05,2]
[404439483,1770142238399,-500.0,8.219e-05,2]
[404439485,1770142238408,-500.0,8.219e-05,2]
[404439487,1770142238418,-206.97402094,8.219e-05,2]
[404439489,1770142238427,-500.0,8.219e-05,2]
[404439491,1770142238436,-500.0,8.219e-05,2]
[404439493,1770142238445,-500.0,8.219e-05,2]
[404439495,1770142238454,-500.0,8.219e-05,2]
[404439497,1770142238464,-300.0,8.219e-05,2]
[404439499,1770142238474,-746.22,8.219e-05,2]
[404439501,1770142238483,-1949.37,8.219e-05,2]
[404439503,1770142238493,-235.78,8.235e-05,2]
[404439505,1770142238503,-746.22,8.676e-05,2]
[404439507,1770142238512,-235.78,8.869e-05,2]
[404439509,1770142238522,-5049.32581474,8.876e-05,2]
[404439511,1770142238538,-394535.83133246,8.876e-05,2]
[404439513,1770142238547,-433.0,8.95e-05,2]
[404439516,1770142238557,-587.0,8.95e-05,2]
[404439517,1770142238566,-382.0,8.95e-05,2]
[404439519,1770142238575,-587.0,8.95e-05,2]
[404439521,1770142238584,-2351.0,8.95e-05,2]
[404439523,1770142238594,-1830.15,9e-05,2]
[404439525,1770142238603,-11400.0,9e-05,3]
[404439527,1770142238612,-746.22,9.132e-05,2]
[404439528,1770142238622,-235.78,9.502e-05,2]
[404439530,1770142238631,-746.22,9.589e-05,2]
[404439532,1770142238642,-250.0,9.775e-05,2]
[404439534,1770142238651,-500.0,9.845e-05,2]
[404439536,1770142238660,-736.0,9.845e-05,2]
[404439538,1770142238670,-823.0,9.845e-05,2]
[404439540,1770142238680,-823.0,9.845e-05,2]
[404439541,1770142238690,-3292.0,9.845e-05,2]
[404439542,1770142238699,-151.0,0.0001,2]
[404439543,1770142238709,-151.0,0.0001,2]
[404439544,1770142238718,-500.0,0.0001,2]
[404439545,1770142238727,-151.0,0.0001,2]
[404439546,1770142238736,-151.0,0.0001,2]
[404439547,1770142238746,-151.0,0.0001,2]
[404439548,1770142238755,-151.0,0.0001,2]
[404439549,1770142238764,-151.0,0.0001,2]
[404439550,1770142238773,-151.0,0.0001,2]
[404439551,1770142238783,-151.0,0.0001,2]
[404439552,1770142238792,-151.0,0.0001,2]
[404439553,1770142238801,-151.0,0.0001,2]
[404439554,1770142238810,-151.0,0.0001,2]
[404439555,1770142238819,-151.0,0.0001,2]
[404439556,1770142238829,-151.0,0.0001,2]
[404439557,1770142238838,-151.0,0.0001,2]
[404439558,1770142238847,-500.0,0.0001,2]
[404439559,1770142238857,-151.0,0.0001,2]
[404439560,1770142238866,-151.0,0.0001,2]
[404439561,1770142238876,-151.0,0.0001,2]
[404439562,1770142238886,-151.0,0.0001,2]
[404439563,1770142238895,-500.0,0.0001,2]
[404439564,1770142238909,-151.0,0.0001,2]
[404439565,1770142238919,-151.0,0.0001,2]
[404439566,1770142238930,-500.0,0.0001,2]
[404439567,1770142238940,-151.0,0.0001,2]
[404439568,1770142238950,-500.0,0.0001,2]
[404439569,1770142238960,-151.0,0.0001,2]
[404439570,1770142238970,-151.0,0.0001,2]
[404439571,1770142238980,-500.0,0.0001,2]
[404439572,1770142238990,-151.0,0.0001,2]
[404439573,1770142239000,-151.0,0.0001,2]
[404439574,1770142239010,-500.0,0.0001,2]
[404439575,1770142239019,-151.0,0.0001,2]
[404439576,1770142239029,-151.0,0.0001,2]
[404439577,1770142239039,-500.0,0.0001,2]
[404439578,1770142239051,-151.0,0.0001,2]
[404439579,1770142239061,-500.0,0.0001,2]
[404439580,1770142239070,-467.43165914,0.0001,2]
[404439581,1770142239080,-151.0,0.0001,2]
[404439582,1770142239090,-151.0,0.0001,2]
[404439583,1770142239100,-151.0,0.0001,2]
[404439584,1770142239110,-500.0,0.0001,2]
[404439585,1770142239119,-151.0,0.0001,2]
[404439586,1770142239128,-500.0,0.0001,2]
[404439587,1770142239138,-500.0,0.0001,2]
[404439588,1770142239148,-500.0,0.0001,2]
[404439589,1770142239158,-500.0,0.0001,2]
[404439590,1770142239167,-500.0,0.0001,2]
[404439591,1770142239177,-500.0,0.0001,2]
[404439592,1770142239186,-500.0,0.0001,2]
[404439593,1770142239195,-500.0,0.0001,2]
[404439594,1770142239205,-500.0,0.0001,2]
[404439595,1770142239214,-500.0,0.0001,2]
[404439596,1770142239228,-150.0212648,0.0001,2]
[404439597,1770142239237,-746.22,0.00010046,2]
[404439598,1770142239246,-500.0,0.00010119,2]
[404439599,1770142239255,-500.0,0.00010393,2]
[404439600,1770142239264,-746.22,0.00010502,2]
[404439601,1770142239274,-500.0,0.00010667,2]
[404439602,1770142239283,-423.0,0.00010829,2]
[404439603,1770142239292,-761.0,0.0001083,2]
[404439604,1770142239302,-1152.0,0.0001083,2]
[404439605,1770142239311,-4609.0,0.0001083,2]
[404439606,1770142239320,-1024.01861174,0.000109,2]
[404439607,1770142239329,-1024.01861174,0.000109,2]
[404439608,1770142239339,-60910.51,0.0001092,2]
[404439609,1770142239348,-500.0,0.00010941,2]
[404439610,1770142239357,-150.0,0.00010959,2]
[404439611,1770142239366,-746.22,0.00010959,2]
[404439612,1770142239376,-5588.61976966,0.00011099,2]
[404439613,1770142239385,-5588.61976966,0.00011099,2]
[404439614,1770142239394,-5588.61976966,0.00011099,2]
[404439615,1770142239403,-5588.61976966,0.00011099,2]
[404439616,1770142239417,-1103.0,0.00011127,2]
[404439617,1770142239427,-500.0,0.00011215,2]
[404439618,1770142239437,-150.0212648,0.00011251,2]
[404439619,1770142239445,-746.22,0.00011416,2]
[404439620,1770142239455,-1024.01861174,0.00011419,2]
[404439621,1770142239463,-500.0,0.00011489,2]
[404439622,1770142239472,-1949.37,0.00011507,2]
[404439623,1770142239482,-4446.53143187,0.00011544,2]
[404439624,1770142239492,-1103.0,0.00011713,2]
[404439625,1770142239503,-746.22,0.00011872,2]
[404439626,1770142239512,-1613.0,0.00011913,2]
[404439627,1770142239520,-463.0,0.00011913,2]
[404439628,1770142239530,-5588.61976966,0.00012011,2]
[404439629,1770142239541,-252.27,0.00012243,2]
[404439630,1770142239550,-692.04395205,0.0001225,2]
[404439631,1770142239559,-6425.67242773,0.0001226,2]
[404439632,1770142239568,-11335.64782181,0.0001226,2]
[404439633,1770142239577,-16957.45120086,0.0001226,2]
[404439634,1770142239586,-22944.0321,0.0001226,2]
[404439635,1770142239595,-746.22,0.00012329,2]
[404439636,1770142239604,-1103.0,0.0001233,2]
[404439637,1770142239613,-150.0212648,0.00012502,2]
[404439638,1770142239621,-4446.53143187,0.00012815,2]
[404439639,1770142239631,-1103.0,0.00012946,2]
[404439640,1770142239640,-1024.01861174,0.0001304,2]
[404439641,1770142239649,-2258.0,0.00013104,2]
[404439642,1770142239658,-5588.61976966,0.00013188,2]
[404439643,1770142239667,-200.0,0.0001345,2]
[404439644,1770142239678,-200.0,0.00013584,2]
[404439645,1770142239687,-1103.0,0.00013593,2]
[404439646,1770142239696,-200.0,0.0001372,2]
[404439647,1770142239705,-150.0212648,0.00013753,2]
[404439648,1770142239714,-174.61919141,0.00013833,2]
[404439649,1770142239723,-277.35679052,0.00013833,2]
[404439650,1770142239732,-209.40437684,0.00013833,2]
[404439651,1770142239741,-200.0,0.00013833,2]
[404439652,1770142239750,-500.0,0.00013833,2]
[404439653,1770142239759,-500.0,0.00013833,2]
[404439654,1770142239768,-500.0,0.00013833,2]
[404439655,1770142239777,-500.0,0.00013833,2]
[404439656,1770142239786,-163.12428816,0.00013833,2]
[404439657,1770142239795,-500.0,0.00013833,2]
[404439658,1770142239804,-500.0,0.00013833,2]
[404439659,1770142239812,-500.0,0.00013833,2]
[404439660,1770142239821,-500.0,0.00013833,2]
[404439661,1770142239830,-322.6107,0.00013833,2]
[404439662,1770142239839,-500.0,0.00013833,2]
[404439663,1770142239848,-500.0,0.00013833,2]
[404439664,1770142239857,-500.0,0.00013833,2]
[404439665,1770142239866,-500.0,0.00013836,2]
[404439666,1770142239875,-200.0,0.00013858,2]
[404439667,1770142239884,-217.15233878,0.00013888,2]
[404439668,1770142239896,-225.18697532,0.00013943,2]
[404439669,1770142239907,-151.0,0.00013987,2]
[404439670,1770142239916,-200.0,0.00013996,2]
[404439671,1770142239927,-151.0,0.00013996,2]
[404439672,1770142239936,-233.51889341,0.00013998,2]
[404439673,1770142239949,-500.0,0.00014027,2]
[404439674,1770142239958,-242.15909246,0.00014053,2]
[404439675,1770142239967,-4446.53143187,0.00014086,2]
[404439676,1770142239977,-251.11897888,0.00014108,2]
[404439677,1770142239987,-18923.0,0.00014119,2]
[404439679,1770142239996,-151.0,0.00014143,2]
[404439680,1770142240005,-151.0,0.00014149,2]
[404439681,1770142240013,-260.4103811,0.00014163,2]
[404439682,1770142240022,-270.0455652,0.00014218,2]
[404439683,1770142240031,-280.03725112,0.00014273,2]
[404439684,1770142240040,-1144.86492537,0.00014273,2]
[404439685,1770142240050,-290.39862941,0.00014328,2]
[404439686,1770142240059,-5588.61976966,0.00014366,2]
[404439687,1770142240072,-181.08010149,0.00014381,2]
[404439688,1770142240082,-330.2006515,0.00014381,2]
[404439689,1770142240092,-200.0,0.00014381,2]
[404439690,1770142240100,-301.1433787,0.00014383,2]
[404439691,1770142240110,-3162.0,0.00014414,2]
[404439692,1770142240119,-160.0,0.00014514,2]
[404439693,1770142240129,-1024.01861174,0.0001466,2]
[404439694,1770142240138,-187.78006525,0.00014929,2]
[404439695,1770142240147,-200.0,0.00014929,2]
[404439696,1770142240156,-900.0,0.00015068,2]
[404439697,1770142240165,-12269.46,0.00015191,2]
[404439698,1770142240174,-334.5472959,0.00015202,2]
[404439699,1770142240184,-4446.53143187,0.00015358,2]
[404439700,1770142240193,-194.72792766,0.00015477,2]
[404439701,1770142240202,-200.0,0.00015477,2]
[404439702,1770142240211,-5588.61976966,0.00015544,2]
[404439704,1770142240220,-1004.24833384,0.00015588,5]
[404439706,1770142240229,-166.66,0.00015595,2]
[404439708,1770142240238,-1100.0,0.00015808,2]
[404439710,1770142240247,-500.0,0.00015817,2]
[404439711,1770142240256,-4427.0,0.00015856,2]
[404439712,1770142240266,-160.0,0.00016,3]
[404439713,1770142240276,-201.93286099,0.00016025,2]
[404439714,1770142240286,-200.0,0.00016025,2]
[404439715,1770142240296,-200.0,0.00016029,2]
[404439716,1770142240307,-1500.0,0.00016082,2]
[404439717,1770142240318,-166.66,0.00016109,2]
[404439718,1770142240329,-4438.32,0.00016116,2]
[404439719,1770142240339,-150.0212648,0.00016254,2]
[404439720,1770142240349,-1024.01861174,0.0001628,2]
[404439721,1770142240359,-915.0,0.000164,2]
[404439722,1770142240370,-500.0,0.00016438,2]
[404439723,1770142240381,-249.80943038,0.00016438,2]
[404439724,1770142240391,-900.0,0.00016438,2]
[404439725,1770142240400,-346.92554585,0.00016571,2]
[404439726,1770142240410,-209.40437684,0.00016573,2]
[404439727,1770142240419,-200.0,0.00016573,2]
[404439728,1770142240431,-166.66,0.00016624,2]
[404439729,1770142240440,-4446.53143187,0.00016629,2]
[404439730,1770142240450,-500.0,0.00016659,2]
[404439731,1770142240464,-5588.61976966,0.00016722,2]
[404439732,1770142240474,-25417.35,0.00016807,2]
[404439733,1770142240483,-1335.0,0.00016866,2]
[404439734,1770142240492,-625.826,0.00016866,2]
[404439735,1770142240502,-3481.0,0.00016866,2]
[404439736,1770142240512,-1410.0,0.00016866,2]
[404439737,1770142240521,-150.0,0.00016866,2]
[404439738,1770142240531,-1271.0,0.00016866,2]
[404439739,1770142240540,-1205.0,0.00016866,2]
[404439740,1770142240550,-917.0,0.00016866,2]
[404439741,1770142240559,-1316.0,0.0001694,2]
[404439742,1770142240569,-2471.026,0.0001694,2]
[404439743,1770142240579,-6580.0,0.0001694,2]
[404439744,1770142240588,-3253.0,0.0001694,2]
[404439745,1770142240598,-500.0,0.00017,7]
[404439746,1770142240607,-500.0,0.00017,7]
[404439747,1770142240616,-500.0,0.00017,7]
[404439748,1770142240626,-500.0,0.00017,7]
[404439749,1770142240635,-500.0,0.00017,7]
[404439750,1770142240644,-500.0,0.00017,7]
[404439751,1770142240653,-500.0,0.00017,7]
[404439752,1770142240663,-500.0,0.00017,7]
[404439753,1770142240672,-500.0,0.00017,7]
[404439754,1770142240688,-500.0,0.00017,7]
[404439755,1770142240698,-500.0,0.00017,7]
[404439756,1770142240707,-500.0,0.00017,7]
[404439757,1770142240717,-500.0,0.00017,7]
[404439758,1770142240726,-500.0,0.00017,7]
[404439759,1770142240735,-500.0,0.00017,7]
[404439760,1770142240744,-500.0,0.00017,7]
[404439761,1770142240753,-500.0,0.00017,7]
[404439762,1770142240763,-500.0,0.00017,7]
[404439763,1770142240772,-500.0,0.00017,7]
[404439764,1770142240781,-500.0,0.00017,7]
[404439765,1770142240791,-500.0,0.00017,7]
[404439766,1770142240800,-500.0,0.00017,7]
[404439767,1770142240809,-500.0,0.00017,7]
[404439768,1770142240819,-500.0,0.00017,7]
[404439769,1770142240828,-500.0,0.00017,7]
[404439770,1770142240837,-500.0,0.00017,7]
[404439771,1770142240850,-500.0,0.00017,7]
[404439772,1770142240860,-500.0,0.00017,7]
[404439773,1770142240870,-500.0,0.00017,7]
[404439774,1770142240879,-500.0,0.00017,7]
[404439775,1770142240889,-500.0,0.00017,7]
[404439776,1770142240898,-500.0,0.00017,7]
[404439777,1770142240910,-500.0,0.00017,7]
[404439778,1770142240920,-500.0,0.00017,7]
[404439779,1770142240934,-500.0,0.00017,7]
[404439780,1770142240944,-500.0,0.00017,7]
[404439781,1770142240953,-500.0,0.00017,7]
[404439782,1770142240962,-500.0,0.00017,7]
[404439783,1770142240972,-500.0,0.00017,7]
[404439784,1770142240983,-500.0,0.00017,7]
[404439785,1770142240992,-500.0,0.00017,7]
[404439786,1770142241002,-500.0,0.00017,7]
[404439787,1770142241011,-500.0,0.00017,7]
[404439788,1770142241021,-500.0,0.00017,7]
[404439789,1770142241030,-500.0,0.00017,7]
[404439790,1770142241039,-500.0,0.00017,7]
[404439791,1770142241051,-500.0,0.00017,7]
[404439792,1770142241060,-500.0,0.00017,7]
[404439793,1770142241070,-500.0,0.00017,7]
[404439794,1770142241080,-500.0,0.00017,7]
[404439795,1770142241090,-500.0,0.00017,7]
[404439796,1770142241100,-500.0,0.00017,7]
[404439797,1770142241110,-500.0,0.00017,7]
[404439798,1770142241120,-160.0,0.00017,7]
[404439799,1770142241130,-500.0,0.00017,7]
[404439800,1770142241140,-500.0,0.00017,7]
[404439801,1770142241151,-500.0,0.00017,7]
[404439802,1770142241160,-500.0,0.00017,7]
[404439803,1770142241171,-500.0,0.00017,7]
[404439804,1770142241184,-500.0,0.00017,7]
[404439805,1770142241194,-500.0,0.00017,7]
[404439806,1770142241203,-500.0,0.00017,7]
[404439807,1770142241212,-500.0,0.00017,7]
[404439808,1770142241222,-500.0,0.00017,7]
[404439809,1770142241231,-500.0,0.00017,7]
[404439810,1770142241244,-500.0,0.00017,7]
[404439811,1770142241253,-500.0,0.00017,7]
[404439812,1770142241262,-500.0,0.00017,7]
[404439813,1770142241272,-500.0,0.00017,7]
[404439814,1770142241282,-500.0,0.00017,7]
[404439815,1770142241291,-500.0,0.00017,7]
[404439816,1770142241301,-500.0,0.00017,7]
[404439817,1770142241310,-500.0,0.00017,7]
[404439818,1770142241320,-500.0,0.00017,7]
[404439819,1770142241329,-166.51,0.00017,7]
[404439820,1770142241338,-500.0,0.00017,7]
[404439821,1770142241348,-500.0,0.00017,7]
[404439822,1770142241358,-500.0,0.00017,7]
[404439823,1770142241367,-500.0,0.00017,7]
[404439824,1770142241377,-500.0,0.00017,7]
[404439825,1770142241387,-500.0,0.00017,7]
[404439826,1770142241397,-500.0,0.00017,7]
[404439827,1770142241406,-500.0,0.00017,7]
[404439828,1770142241416,-500.0,0.00017,7]
[404439829,1770142241425,-500.0,0.00017,7]
[404439830,1770142241699,-500.0,0.00017,7]
[404439831,1770142241709,-500.0,0.00017,7]
[404439832,1770142241718,-500.0,0.00017,7]
[404439833,1770142241728,-500.0,0.00017,7]
[404439834,1770142241737,-500.0,0.00017,7]
[404439835,1770142241747,-500.0,0.00017,7]
[404439836,1770142241755,-500.0,0.00017,7]
[404439837,1770142241764,-500.0,0.00017,7]
[404439838,1770142241774,-500.0,0.00017,7]
[404439839,1770142241783,-500.0,0.00017,7]
[404439840,1770142241793,-500.0,0.00017,7]
[404439841,1770142241802,-500.0,0.00017,7]
[404439842,1770142241811,-500.0,0.00017,7]
[404439843,1770142241820,-500.0,0.00017,7]
[404439844,1770142241830,-500.0,0.00017,7]
[404439845,1770142241839,-500.0,0.00017,7]
[404439846,1770142241848,-500.0,0.00017,7]
[404439847,1770142241858,-500.0,0.00017,7]
[404439848,1770142241867,-500.0,0.00017,7]
[404439849,1770142241876,-500.0,0.00017,7]
[404439850,1770142241885,-404.8,0.00017,7]
[404439851,1770142241895,-5000.0,0.00017,2]
[404439852,1770142241908,-217.15233878,0.00017121,2]
[404439853,1770142241918,-200.0,0.00017121,2]
[404439854,1770142241929,-166.66,0.00017139,2]
[404439855,1770142241938,-1100.0,0.00017178,7]
[404439856,1770142241950,-1000.0,0.0001726,2]
[404439857,1770142241959,-839.0,0.0001736,2]
[404439858,1770142241968,-3616.0,0.00017441,2]
[404439859,1770142241980,-1500.0,0.00017452,7]
[404439860,1770142241990,-160.0,0.000175,7]
[404439861,1770142242000,-1000.0,0.00017534,2]
[404439862,1770142242009,-2200.0,0.000176,6]
[404439863,1770142242019,-152.0,0.00017607,3]
[404439864,1770142242028,-5888.0,0.00017624,2]
[404439865,1770142242038,-5888.0,0.00017634,2]
[404439866,1770142242047,-166.66,0.00017654,2]
[404439867,1770142242057,-225.18697532,0.00017669,2]